[Event "*** Titled Tuesday Blitz"]
[Site "Chess.com"]
[Date "2020.11.03"]
[Round "7"]
[White "redbaron8888"]
[Black "chito89"]
[Result "0-1"]
[WhiteElo "2545"]
[BlackElo "2786"]
[TimeControl "180+1"]
[EndTime "11:18:52 PST"]
[Termination "chito89 won by resignation"]

1. d4 {[%clk 0:03:00.9]} 1... Nf6 {[%clk 0:01:50]} 2. Bg5 {[%clk 0:02:59.8]}
2... d5 {[%clk 0:01:48.6]} 3. Nd2 {[%clk 0:02:59.1]} 3... c5 {[%clk 0:01:44.5]}
4. e3 {[%clk 0:02:59]} 4... Nc6 {[%clk 0:01:43.9]} 5. c3 {[%clk 0:02:58.6]} 5...
cxd4 {[%clk 0:01:42.7]} 6. exd4 {[%clk 0:02:58.3]} 6... Bf5 {[%clk 0:01:43.2]}
7. Qb3 {[%clk 0:02:51.8]} 7... Qd7 {[%clk 0:01:42]} 8. Ngf3 {[%clk 0:02:50.4]}
8... e6 {[%clk 0:01:41.8]} 9. Ne5 {[%clk 0:02:47.1]} 9... Qc7 {[%clk 0:01:36.1]}
10. Bb5 {[%clk 0:02:09]} 10... Bd6 {[%clk 0:01:32.4]} 11. f4 {[%clk 0:01:33.7]}
11... O-O {[%clk 0:01:25]} 12. O-O {[%clk 0:01:32.5]} 12... Ne4 {[%clk
0:01:24.4]} 13. Nxe4 {[%clk 0:01:31.6]} 13... Bxe4 {[%clk 0:01:25.3]} 14. Bh4
{[%clk 0:01:30]} 14... f6 {[%clk 0:01:22]} 15. Nxc6 {[%clk 0:01:15.3]} 15...
bxc6 {[%clk 0:01:22.9]} 16. Ba4 {[%clk 0:01:11.1]} 16... Bxf4 {[%clk 0:01:21.9]}
17. Bxc6 {[%clk 0:00:42.8]} 17... Rab8 {[%clk 0:01:20.3]} 18. Qa4 {[%clk
0:00:39.3]} 18... Rxb2 {[%clk 0:01:19.9]} 19. Bf2 {[%clk 0:00:38.3]} 19... Bxh2+
{[%clk 0:01:17.2]} 20. Kh1 {[%clk 0:00:38.6]} 20... Bxg2+ {[%clk 0:01:05.3]} 21.
Kxg2 {[%clk 0:00:38.1]} 21... Qg3+ {[%clk 0:01:06.2]} 22. Kh1 {[%clk 0:00:37.8]}
22... Qh3 {[%clk 0:01:06.7]} 0-1

[Event "*** Titled Tuesday Blitz"]
[Site "Chess.com"]
[Date "2020.11.03"]
[Round "7"]
[White "Skat2704"]
[Black "Kaslask"]
[Result "1-0"]
[WhiteElo "2442"]
[BlackElo "2293"]
[TimeControl "180+1"]
[EndTime "11:19:02 PST"]
[Termination "Skat2704 won by checkmate"]

1. d4 {[%clk 0:02:59.7]} 1... Nf6 {[%clk 0:02:59.6]} 2. c4 {[%clk 0:02:59.5]}
2... g6 {[%clk 0:02:59.6]} 3. Nc3 {[%clk 0:02:59.2]} 3... d5 {[%clk 0:03:00.1]}
4. Nf3 {[%clk 0:02:59.1]} 4... Bg7 {[%clk 0:02:59.4]} 5. e3 {[%clk 0:02:59.6]}
5... O-O {[%clk 0:02:56.6]} 6. cxd5 {[%clk 0:03:00.5]} 6... Nxd5 {[%clk
0:02:55.8]} 7. Bc4 {[%clk 0:03:01.4]} 7... Nb6 {[%clk 0:02:54.6]} 8. Bb3 {[%clk
0:03:01.5]} 8... N8d7 {[%clk 0:02:50.6]} 9. O-O {[%clk 0:02:58.9]} 9... e5
{[%clk 0:02:50.5]} 10. dxe5 {[%clk 0:02:58]} 10... Nxe5 {[%clk 0:02:49.7]} 11.
Nxe5 {[%clk 0:02:58.6]} 11... Bxe5 {[%clk 0:02:45.1]} 12. Qe2 {[%clk 0:02:58.7]}
12... c6 {[%clk 0:02:42.1]} 13. Rd1 {[%clk 0:02:56.2]} 13... Qe7 {[%clk
0:02:41.6]} 14. f4 {[%clk 0:02:52.2]} 14... Bg7 {[%clk 0:02:33.7]} 15. e4 {[%clk
0:02:52.2]} 15... Bxc3 {[%clk 0:02:24.4]} 16. bxc3 {[%clk 0:02:50.8]} 16... Bf5
{[%clk 0:02:24.3]} 17. e5 {[%clk 0:02:39]} 17... Rad8 {[%clk 0:02:16.7]} 18. Be3
{[%clk 0:02:36]} 18... Nd5 {[%clk 0:02:14.6]} 19. Bd2 {[%clk 0:02:26.5]} 19...
Qh4 {[%clk 0:02:09.9]} 20. Qf2 {[%clk 0:02:20.3]} 20... Qh5 {[%clk 0:02:00.6]}
21. c4 {[%clk 0:02:16.7]} 21... Nb6 {[%clk 0:01:34.6]} 22. Bb4 {[%clk
0:02:13.9]} 22... Rfe8 {[%clk 0:01:23.2]} 23. Rd6 {[%clk 0:01:56.8]} 23... Be6
{[%clk 0:01:21]} 24. Rad1 {[%clk 0:01:48.6]} 24... Rxd6 {[%clk 0:01:20.9]} 25.
exd6 {[%clk 0:01:48]} 25... Nd7 {[%clk 0:01:07.6]} 26. Bc3 {[%clk 0:01:41.5]}
26... Bxc4 {[%clk 0:01:04.1]} 27. Qd4 {[%clk 0:01:32.1]} 27... Ne5 {[%clk
0:00:41]} 28. Bxc4 {[%clk 0:01:21.1]} 28... Nf3+ {[%clk 0:00:31.5]} 29. gxf3
{[%clk 0:01:20.1]} 29... Qxf3 {[%clk 0:00:31.5]} 30. Qg7# {[%clk 0:01:18.5]} 1-0

[Event "*** Titled Tuesday Blitz"]
[Site "Chess.com"]
[Date "2020.11.03"]
[Round "7"]
[White "Vyacheslav_N"]
[Black "RobPeresian"]
[Result "0-1"]
[WhiteElo "2295"]
[BlackElo "2453"]
[TimeControl "180+1"]
[EndTime "11:19:04 PST"]
[Termination "RobPeresian won on time"]

1. e4 {[%clk 0:03:00.9]} 1... e5 {[%clk 0:03:00]} 2. Nc3 {[%clk 0:02:58.8]} 2...
Nf6 {[%clk 0:02:59.4]} 3. f4 {[%clk 0:02:58.7]} 3... d5 {[%clk 0:02:58.9]} 4.
fxe5 {[%clk 0:02:58.9]} 4... Nxe4 {[%clk 0:02:59.3]} 5. Qf3 {[%clk 0:02:59.2]}
5... Nxc3 {[%clk 0:02:57]} 6. dxc3 {[%clk 0:03:00.1]} 6... Be7 {[%clk
0:02:57.4]} 7. Bf4 {[%clk 0:03:00.5]} 7... O-O {[%clk 0:02:57.4]} 8. O-O-O
{[%clk 0:03:01]} 8... c6 {[%clk 0:02:57.3]} 9. Bd3 {[%clk 0:02:54.4]} 9... Nd7
{[%clk 0:02:49.3]} 10. Qg3 {[%clk 0:02:54.7]} 10... Nc5 {[%clk 0:02:43.4]} 11.
Nf3 {[%clk 0:02:53.9]} 11... Nxd3+ {[%clk 0:02:41.3]} 12. cxd3 {[%clk
0:02:54.8]} 12... Bf5 {[%clk 0:02:37.6]} 13. h4 {[%clk 0:02:54.8]} 13... Kh8
{[%clk 0:02:35.4]} 14. h5 {[%clk 0:02:42.9]} 14... h6 {[%clk 0:02:33.4]} 15. Nh4
{[%clk 0:02:39.4]} 15... Bh7 {[%clk 0:02:32.3]} 16. Rdf1 {[%clk 0:02:16.4]}
16... Qa5 {[%clk 0:02:30]} 17. Kb1 {[%clk 0:02:00.9]} 17... Qb5 {[%clk
0:02:28.1]} 18. Ng6+ {[%clk 0:01:57.7]} 18... fxg6 {[%clk 0:02:25.8]} 19. hxg6
{[%clk 0:01:58.6]} 19... Rxf4 {[%clk 0:02:23.2]} 20. Rxf4 {[%clk 0:01:48.5]}
20... Bg8 {[%clk 0:02:21.3]} 21. c4 {[%clk 0:01:22.8]} 21... dxc4 {[%clk
0:02:20.8]} 22. Rf6 {[%clk 0:00:18.9]} 22... Bxf6 {[%clk 0:01:46.5]} 23. exf6
{[%clk 0:00:06.8]} 23... c3 {[%clk 0:01:40.7]} 24. b3 {[%clk 0:00:01.8]} 24...
Bxb3 {[%clk 0:01:40]} 25. fxg7+ {[%clk 0:00:01.6]} 25... Kg8 {[%clk 0:01:37.3]}
0-1

[Event "*** Titled Tuesday Blitz"]
[Site "Chess.com"]
[Date "2020.11.03"]
[Round "7"]
[White "Tocras"]
[Black "Mikhail_Golubev"]
[Result "1-0"]
[WhiteElo "2796"]
[BlackElo "2556"]
[TimeControl "180+1"]
[EndTime "11:19:08 PST"]
[Termination "Tocras won by resignation"]

1. e4 {[%clk 0:03:00.9]} 1... c5 {[%clk 0:02:59.5]} 2. Nc3 {[%clk 0:03:01.1]}
2... g6 {[%clk 0:02:58.2]} 3. Bc4 {[%clk 0:02:58.6]} 3... Bg7 {[%clk 0:02:56.4]}
4. d3 {[%clk 0:02:59]} 4... Nc6 {[%clk 0:02:48.1]} 5. a3 {[%clk 0:02:58.1]} 5...
e6 {[%clk 0:02:47.5]} 6. h4 {[%clk 0:02:57]} 6... Nge7 {[%clk 0:02:38.2]} 7. h5
{[%clk 0:02:53.9]} 7... d5 {[%clk 0:02:37.8]} 8. Ba2 {[%clk 0:02:43.1]} 8... b5
{[%clk 0:01:32]} 9. h6 {[%clk 0:02:24.4]} 9... Bf6 {[%clk 0:01:31.6]} 10. Qf3
{[%clk 0:02:18.2]} 10... Ng8 {[%clk 0:01:17.5]} 11. Nge2 {[%clk 0:02:14.6]}
11... d4 {[%clk 0:01:14.6]} 12. e5 {[%clk 0:01:56.6]} 12... Nxe5 {[%clk
0:01:06.6]} 13. Qxa8 {[%clk 0:01:54]} 13... dxc3 {[%clk 0:01:07.2]} 14. Nxc3
{[%clk 0:01:50.7]} 14... Qd7 {[%clk 0:00:52.8]} 15. Ne4 {[%clk 0:01:42.9]} 15...
Be7 {[%clk 0:00:44.5]} 16. Bf4 {[%clk 0:01:42.1]} 16... Nc6 {[%clk 0:00:41.7]}
17. Bd6 {[%clk 0:01:16.3]} 17... Bd8 {[%clk 0:00:36.7]} 18. Bxc5 {[%clk
0:01:09.1]} 18... Bb7 {[%clk 0:00:29.6]} 19. Qxb7 {[%clk 0:01:06.6]} 19... Qxb7
{[%clk 0:00:30]} 20. Nd6+ {[%clk 0:01:06.7]} 20... Kd7 {[%clk 0:00:30.5]} 21.
Nxb7 {[%clk 0:01:07]} 21... Nf6 {[%clk 0:00:29.6]} 22. Nxd8 {[%clk 0:01:05.5]}
22... Rxd8 {[%clk 0:00:28.4]} 23. O-O-O {[%clk 0:01:03.4]} 1-0

[Event "*** Titled Tuesday Blitz"]
[Site "Chess.com"]
[Date "2020.11.03"]
[Round "7"]
[White "ClydeHillKid"]
[Black "Kapibara_Warri0r"]
[Result "1-0"]
[WhiteElo "2357"]
[BlackElo "2146"]
[TimeControl "180+1"]
[EndTime "11:19:08 PST"]
[Termination "ClydeHillKid won on time"]

1. e4 {[%clk 0:03:00.9]} 1... e5 {[%clk 0:02:59.5]} 2. Nf3 {[%clk 0:03:00.3]}
2... Nc6 {[%clk 0:02:59.9]} 3. Bc4 {[%clk 0:02:59.9]} 3... Nf6 {[%clk 0:03:00]}
4. d3 {[%clk 0:02:59.1]} 4... Be7 {[%clk 0:02:59.2]} 5. O-O {[%clk 0:02:56.9]}
5... O-O {[%clk 0:02:59.5]} 6. c3 {[%clk 0:02:56.8]} 6... d5 {[%clk 0:02:46.7]}
7. exd5 {[%clk 0:02:56.1]} 7... Nxd5 {[%clk 0:02:47.6]} 8. h3 {[%clk 0:02:55.9]}
8... Nb6 {[%clk 0:02:45.8]} 9. Bb3 {[%clk 0:02:54.2]} 9... Bd6 {[%clk
0:02:46.3]} 10. Re1 {[%clk 0:02:53.4]} 10... Kh8 {[%clk 0:02:45.2]} 11. Ng5
{[%clk 0:02:42.2]} 11... Qf6 {[%clk 0:02:27.3]} 12. Qh5 {[%clk 0:02:34.7]} 12...
Qg6 {[%clk 0:01:04.9]} 13. Nxf7+ {[%clk 0:02:27.7]} 13... Rxf7 {[%clk
0:00:43.6]} 14. Qxg6 {[%clk 0:02:25.3]} 14... hxg6 {[%clk 0:00:42.8]} 15. Bxf7
{[%clk 0:02:24.9]} 15... Bf5 {[%clk 0:00:38.1]} 16. Nd2 {[%clk 0:02:07.2]} 16...
Rf8 {[%clk 0:00:36.5]} 17. Bc4 {[%clk 0:02:02.6]} 17... Nxc4 {[%clk 0:00:35.7]}
18. Nxc4 {[%clk 0:02:03.5]} 18... Bxd3 {[%clk 0:00:35.5]} 19. Nxd6 {[%clk
0:02:01.9]} 19... cxd6 {[%clk 0:00:36.4]} 20. Be3 {[%clk 0:01:54.4]} 20... e4
{[%clk 0:00:32.5]} 21. Rad1 {[%clk 0:01:46.6]} 21... a6 {[%clk 0:00:31.4]} 22.
f3 {[%clk 0:01:42.9]} 22... d5 {[%clk 0:00:31.4]} 23. fxe4 {[%clk 0:01:35.8]}
23... dxe4 {[%clk 0:00:32.3]} 24. Rd2 {[%clk 0:01:32.8]} 24... Ne5 {[%clk
0:00:29]} 25. Rf2 {[%clk 0:01:30]} 1-0

[Event "*** Titled Tuesday Blitz"]
[Site "Chess.com"]
[Date "2020.11.03"]
[Round "7"]
[White "Atousa1"]
[Black "MartinZumsande"]
[Result "1/2-1/2"]
[WhiteElo "2427"]
[BlackElo "2567"]
[TimeControl "180+1"]
[EndTime "11:19:09 PST"]
[Termination "Game drawn by repetition"]

1. e4 {[%clk 0:03:00.9]} 1... e6 {[%clk 0:03:00.1]} 2. d4 {[%clk 0:03:00.4]}
2... d5 {[%clk 0:03:00.6]} 3. Nd2 {[%clk 0:02:59.1]} 3... Nf6 {[%clk 0:02:59.3]}
4. e5 {[%clk 0:02:57.9]} 4... Nfd7 {[%clk 0:02:59.8]} 5. Bd3 {[%clk 0:02:56.6]}
5... c5 {[%clk 0:03:00.2]} 6. c3 {[%clk 0:02:57.1]} 6... b6 {[%clk 0:03:00.6]}
7. Ne2 {[%clk 0:02:52.4]} 7... Ba6 {[%clk 0:02:58.7]} 8. Bxa6 {[%clk 0:02:52.4]}
8... Nxa6 {[%clk 0:02:59.6]} 9. O-O {[%clk 0:02:52.6]} 9... Nc7 {[%clk
0:02:56.2]} 10. f4 {[%clk 0:02:52.4]} 10... f5 {[%clk 0:02:56.4]} 11. exf6
{[%clk 0:02:51]} 11... Nxf6 {[%clk 0:02:56.5]} 12. Nf3 {[%clk 0:02:46.4]} 12...
Bd6 {[%clk 0:02:56.9]} 13. Ne5 {[%clk 0:02:36.4]} 13... O-O {[%clk 0:02:55.3]}
14. Ng3 {[%clk 0:02:34.2]} 14... Bxe5 {[%clk 0:02:54.5]} 15. fxe5 {[%clk
0:02:32.8]} 15... Nd7 {[%clk 0:02:52.6]} 16. Be3 {[%clk 0:02:29.4]} 16... Qh4
{[%clk 0:02:51.4]} 17. Qh5 {[%clk 0:02:15.4]} 17... Qxh5 {[%clk 0:02:50.7]} 18.
Nxh5 {[%clk 0:02:16.3]} 18... c4 {[%clk 0:02:49.8]} 19. g4 {[%clk 0:02:06.3]}
19... Rxf1+ {[%clk 0:02:41.5]} 20. Rxf1 {[%clk 0:02:05.8]} 20... Rf8 {[%clk
0:02:42.3]} 21. Bg5 {[%clk 0:01:58.4]} 21... Rxf1+ {[%clk 0:02:35.9]} 22. Kxf1
{[%clk 0:01:59.3]} 22... Kf7 {[%clk 0:02:35.5]} 23. Ke2 {[%clk 0:01:56.3]} 23...
b5 {[%clk 0:02:34.4]} 24. Bd8 {[%clk 0:01:52.2]} 24... Na6 {[%clk 0:02:33]} 25.
a3 {[%clk 0:01:46.6]} 25... Nab8 {[%clk 0:02:32.8]} 26. Kd2 {[%clk 0:01:34.8]}
26... Nc6 {[%clk 0:02:31.8]} 27. Bh4 {[%clk 0:01:24]} 27... Nb6 {[%clk
0:02:28.7]} 28. Bf2 {[%clk 0:01:22.1]} 28... Na4 {[%clk 0:02:27.9]} 29. Kc2
{[%clk 0:01:22.5]} 29... a5 {[%clk 0:02:24.7]} 30. Nf4 {[%clk 0:01:15.2]} 30...
b4 {[%clk 0:02:23.4]} 31. axb4 {[%clk 0:01:13.9]} 31... axb4 {[%clk 0:02:24.3]}
32. Ne2 {[%clk 0:01:09.5]} 32... b3+ {[%clk 0:02:11.4]} 33. Kc1 {[%clk
0:01:08.1]} 33... Ne7 {[%clk 0:01:58.2]} 34. Nf4 {[%clk 0:01:03.6]} 34... Ng6
{[%clk 0:01:57.3]} 35. Nxg6 {[%clk 0:00:57.7]} 35... Kxg6 {[%clk 0:01:55.9]} 36.
Be3 {[%clk 0:00:57.9]} 36... h5 {[%clk 0:01:52.3]} 37. h3 {[%clk 0:00:56.5]}
37... hxg4 {[%clk 0:01:52.2]} 38. hxg4 {[%clk 0:00:57.4]} 38... Nb6 {[%clk
0:01:50]} 39. Kd1 {[%clk 0:00:56.9]} 39... Na8 {[%clk 0:01:48.7]} 40. Ke2 {[%clk
0:00:53.7]} 40... Nc7 {[%clk 0:01:49]} 41. Kf3 {[%clk 0:00:53.5]} 41... Nb5
{[%clk 0:01:48.7]} 42. Bd2 {[%clk 0:00:51.3]} 42... Na3 {[%clk 0:01:46.9]} 43.
Bc1 {[%clk 0:00:50.6]} 43... Nb5 {[%clk 0:01:38.8]} 44. Bd2 {[%clk 0:00:50]}
44... Nc7 {[%clk 0:01:39.1]} 45. Kf4 {[%clk 0:00:48.5]} 45... Nb5 {[%clk
0:01:31.5]} 46. Kf3 {[%clk 0:00:47.9]} 1/2-1/2

[Event "*** Titled Tuesday Blitz"]
[Site "Chess.com"]
[Date "2020.11.03"]
[Round "7"]
[White "MashaFromRussia"]
[Black "pastouche06"]
[Result "0-1"]
[WhiteElo "2349"]
[BlackElo "2504"]
[TimeControl "180+1"]
[EndTime "11:19:15 PST"]
[Termination "pastouche06 won by resignation"]

1. d4 {[%clk 0:03:00.9]} 1... d5 {[%clk 0:02:58.3]} 2. c4 {[%clk 0:03:01.2]}
2... e6 {[%clk 0:02:57]} 3. Nf3 {[%clk 0:03:01.5]} 3... Nf6 {[%clk 0:02:56.2]}
4. g3 {[%clk 0:03:01.9]} 4... dxc4 {[%clk 0:02:52.9]} 5. Bg2 {[%clk 0:03:01.2]}
5... Bd7 {[%clk 0:02:53.4]} 6. O-O {[%clk 0:02:57.9]} 6... Bc6 {[%clk
0:02:52.9]} 7. Nbd2 {[%clk 0:02:58.1]} 7... b5 {[%clk 0:02:52.4]} 8. e3 {[%clk
0:02:50.2]} 8... Be7 {[%clk 0:02:50.5]} 9. a4 {[%clk 0:02:47.7]} 9... a6 {[%clk
0:02:48.9]} 10. Ne5 {[%clk 0:02:45.5]} 10... Bxg2 {[%clk 0:02:42.7]} 11. Kxg2
{[%clk 0:02:46.4]} 11... Qd5+ {[%clk 0:02:43]} 12. f3 {[%clk 0:02:43.5]} 12...
O-O {[%clk 0:02:40.6]} 13. Nb1 {[%clk 0:02:43.3]} 13... Nbd7 {[%clk 0:02:26.3]}
14. Nc3 {[%clk 0:02:39.5]} 14... Qb7 {[%clk 0:02:25.2]} 15. Nxd7 {[%clk
0:02:28.7]} 15... Nxd7 {[%clk 0:02:23.5]} 16. e4 {[%clk 0:02:29.6]} 16... c5
{[%clk 0:02:15.6]} 17. d5 {[%clk 0:02:28.9]} 17... exd5 {[%clk 0:02:11]} 18.
Nxd5 {[%clk 0:02:27.5]} 18... Ne5 {[%clk 0:02:09.3]} 19. f4 {[%clk 0:02:07.1]}
19... Nd3 {[%clk 0:02:08.3]} 20. Qg4 {[%clk 0:02:04.4]} 20... f5 {[%clk
0:02:04.4]} 21. Qf3 {[%clk 0:02:01.4]} 21... Rad8 {[%clk 0:01:51.9]} 22. Nxe7+
{[%clk 0:01:42.2]} 22... Qxe7 {[%clk 0:01:52.8]} 23. e5 {[%clk 0:01:43.1]} 23...
Qc7 {[%clk 0:01:27.4]} 24. axb5 {[%clk 0:01:40.4]} 24... axb5 {[%clk 0:01:27.2]}
25. Be3 {[%clk 0:01:34.4]} 25... Nxb2 {[%clk 0:01:21.9]} 26. Ra6 {[%clk
0:01:28.9]} 26... Nd3 {[%clk 0:01:09.6]} 27. Rfa1 {[%clk 0:01:26.7]} 27... Qd7
{[%clk 0:00:59.2]} 28. Rd6 {[%clk 0:01:18]} 28... Qe7 {[%clk 0:00:57]} 29. Rb6
{[%clk 0:01:10]} 29... Rb8 {[%clk 0:00:53.6]} 30. Rba6 {[%clk 0:01:06.7]} 30...
b4 {[%clk 0:00:51.8]} 31. Ra7 {[%clk 0:01:05.2]} 31... Qxa7 {[%clk 0:00:48.6]}
32. Rxa7 {[%clk 0:01:03.7]} 32... Ne1+ {[%clk 0:00:47.1]} 0-1

[Event "*** Titled Tuesday Blitz"]
[Site "Chess.com"]
[Date "2020.11.03"]
[Round "7"]
[White "andriipalchuk"]
[Black "FMalexhdez"]
[Result "1-0"]
[WhiteElo "2453"]
[BlackElo "2305"]
[TimeControl "180+1"]
[EndTime "11:19:15 PST"]
[Termination "andriipalchuk won by resignation"]

1. d4 {[%clk 0:02:54]} 1... Nf6 {[%clk 0:02:57.7]} 2. c4 {[%clk 0:02:54.5]} 2...
e6 {[%clk 0:02:56.5]} 3. Nf3 {[%clk 0:02:55]} 3... Bb4+ {[%clk 0:02:56.5]} 4.
Bd2 {[%clk 0:02:54.7]} 4... Qe7 {[%clk 0:02:56]} 5. g3 {[%clk 0:02:54.3]} 5...
a5 {[%clk 0:02:55.4]} 6. Bg2 {[%clk 0:02:54.2]} 6... O-O {[%clk 0:02:55.2]} 7.
O-O {[%clk 0:02:53.9]} 7... Bxd2 {[%clk 0:02:55]} 8. Qxd2 {[%clk 0:02:52.5]}
8... d6 {[%clk 0:02:55.3]} 9. Nc3 {[%clk 0:02:51.6]} 9... Nbd7 {[%clk
0:02:55.2]} 10. b3 {[%clk 0:02:47.1]} 10... e5 {[%clk 0:02:54.9]} 11. dxe5
{[%clk 0:02:45.8]} 11... Nxe5 {[%clk 0:02:53.2]} 12. Nd4 {[%clk 0:02:44.8]}
12... c6 {[%clk 0:02:47.4]} 13. e4 {[%clk 0:02:41.2]} 13... Ng6 {[%clk
0:02:37.7]} 14. f4 {[%clk 0:02:39.4]} 14... Re8 {[%clk 0:02:34]} 15. Rfe1 {[%clk
0:02:39]} 15... Qc7 {[%clk 0:02:31.9]} 16. h3 {[%clk 0:02:34.1]} 16... h5 {[%clk
0:02:31.1]} 17. Rad1 {[%clk 0:02:32.1]} 17... Bd7 {[%clk 0:01:44.8]} 18. Nf3
{[%clk 0:02:21]} 18... Rad8 {[%clk 0:01:43.4]} 19. Qxd6 {[%clk 0:02:17.3]} 19...
Qc8 {[%clk 0:01:43.5]} 20. Qc5 {[%clk 0:01:42.9]} 20... Bxh3 {[%clk 0:01:42.4]}
21. e5 {[%clk 0:01:43]} 21... Bxg2 {[%clk 0:01:35.7]} 22. Kxg2 {[%clk
0:01:42.9]} 22... Ng4 {[%clk 0:01:24]} 23. Ne4 {[%clk 0:01:31.1]} 23... Rxd1
{[%clk 0:01:17.8]} 24. Rxd1 {[%clk 0:01:30.3]} 24... Qf5 {[%clk 0:01:16.7]} 25.
Nd6 {[%clk 0:01:26.3]} 25... Qc2+ {[%clk 0:01:16.6]} 26. Rd2 {[%clk 0:01:26.6]}
26... Qc3 {[%clk 0:00:58.4]} 27. Nxe8 {[%clk 0:01:08.9]} 27... h4 {[%clk
0:00:45.5]} 28. Qd4 {[%clk 0:00:58.2]} 28... Ne3+ {[%clk 0:00:40.6]} 29. Kh3
{[%clk 0:00:58.2]} 1-0

[Event "*** Titled Tuesday Blitz"]
[Site "Chess.com"]
[Date "2020.11.03"]
[Round "7"]
[White "lacafi"]
[Black "dosto07"]
[Result "0-1"]
[WhiteElo "2094"]
[BlackElo "2355"]
[TimeControl "180+1"]
[EndTime "11:19:18 PST"]
[Termination "dosto07 won on time"]

1. d4 {[%clk 0:01:45.2]} 1... d5 {[%clk 0:02:58.6]} 2. Nf3 {[%clk 0:01:45.6]}
2... Nf6 {[%clk 0:02:57.3]} 3. e3 {[%clk 0:01:45.8]} 3... c5 {[%clk 0:02:56]} 4.
c3 {[%clk 0:01:45.8]} 4... Nc6 {[%clk 0:02:55]} 5. Nbd2 {[%clk 0:01:45.6]} 5...
Qb6 {[%clk 0:02:52.5]} 6. Bd3 {[%clk 0:01:43.3]} 6... Bg4 {[%clk 0:02:49.2]} 7.
Qa4 {[%clk 0:01:42.8]} 7... c4 {[%clk 0:02:42.5]} 8. Bb1 {[%clk 0:01:37.4]} 8...
Bd7 {[%clk 0:02:39.9]} 9. Qd1 {[%clk 0:01:33.7]} 9... e6 {[%clk 0:02:32.5]} 10.
e4 {[%clk 0:01:32.7]} 10... Be7 {[%clk 0:02:15.9]} 11. Qe2 {[%clk 0:01:30.4]}
11... O-O {[%clk 0:02:13.5]} 12. O-O {[%clk 0:01:30.2]} 12... Qd8 {[%clk
0:02:09.9]} 13. Re1 {[%clk 0:01:24.1]} 13... b5 {[%clk 0:02:07.3]} 14. exd5
{[%clk 0:01:16.7]} 14... exd5 {[%clk 0:02:04.7]} 15. Ne5 {[%clk 0:01:17.2]}
15... Bd6 {[%clk 0:01:57.9]} 16. Ndf3 {[%clk 0:01:06.9]} 16... h6 {[%clk
0:01:54.2]} 17. Qc2 {[%clk 0:00:56.8]} 17... Re8 {[%clk 0:01:44.8]} 18. Bf4
{[%clk 0:00:53.6]} 18... Qc7 {[%clk 0:01:26.7]} 19. Bg3 {[%clk 0:00:39.5]} 19...
Ne4 {[%clk 0:01:23.9]} 20. Rxe4 {[%clk 0:00:33]} 20... Bf5 {[%clk 0:01:17.4]}
21. Qc1 {[%clk 0:00:02.6]} 21... Bxe4 {[%clk 0:01:15.1]} 22. Bxe4 {[%clk
0:00:02.2]} 22... dxe4 {[%clk 0:01:14.6]} 23. Nd2 {[%clk 0:00:01.2]} 23... Nxe5
{[%clk 0:01:13.2]} 0-1

[Event "*** Titled Tuesday Blitz"]
[Site "Chess.com"]
[Date "2020.11.03"]
[Round "7"]
[White "XDPS"]
[Black "ssrija97"]
[Result "1-0"]
[WhiteElo "2674"]
[BlackElo "2303"]
[TimeControl "180+1"]
[EndTime "11:19:20 PST"]
[Termination "XDPS won by checkmate"]

1. e4 {[%clk 0:03:00.9]} 1... e5 {[%clk 0:02:59.6]} 2. Nf3 {[%clk 0:03:00.8]}
2... Nc6 {[%clk 0:02:59.5]} 3. Bb5 {[%clk 0:03:00.9]} 3... a6 {[%clk 0:02:59.6]}
4. Ba4 {[%clk 0:03:01.3]} 4... Nf6 {[%clk 0:02:59.7]} 5. O-O {[%clk 0:03:01.5]}
5... b5 {[%clk 0:02:59]} 6. Bb3 {[%clk 0:02:59.8]} 6... Bb7 {[%clk 0:02:59.6]}
7. d3 {[%clk 0:02:57.6]} 7... Be7 {[%clk 0:02:57.9]} 8. Nc3 {[%clk 0:02:56.9]}
8... O-O {[%clk 0:02:55.5]} 9. a3 {[%clk 0:02:54.7]} 9... d6 {[%clk 0:02:51]}
10. Re1 {[%clk 0:02:54.5]} 10... Qd7 {[%clk 0:02:49.3]} 11. Ne2 {[%clk
0:02:53.3]} 11... d5 {[%clk 0:02:32.4]} 12. exd5 {[%clk 0:02:44.4]} 12... Nxd5
{[%clk 0:02:31.7]} 13. Ng3 {[%clk 0:02:44.8]} 13... f6 {[%clk 0:02:05.3]} 14. d4
{[%clk 0:02:02.6]} 14... Nxd4 {[%clk 0:01:22.4]} 15. Nxd4 {[%clk 0:02:03.5]}
15... exd4 {[%clk 0:01:23]} 16. Qxd4 {[%clk 0:02:02.2]} 16... Rfe8 {[%clk
0:00:53]} 17. c4 {[%clk 0:01:50.2]} 17... bxc4 {[%clk 0:00:44.3]} 18. Qxc4
{[%clk 0:01:42.4]} 18... Kh8 {[%clk 0:00:41.4]} 19. Bd2 {[%clk 0:01:37.7]} 19...
Nb6 {[%clk 0:00:40.4]} 20. Qc2 {[%clk 0:01:25.3]} 20... c5 {[%clk 0:00:37.2]}
21. Ba5 {[%clk 0:01:18]} 21... Qc6 {[%clk 0:00:34.7]} 22. Qe4 {[%clk 0:01:13.5]}
22... c4 {[%clk 0:00:20.3]} 23. Bc2 {[%clk 0:01:05.7]} 23... Qd7 {[%clk
0:00:18.4]} 24. Qxh7# {[%clk 0:01:05.7]} 1-0

[Event "*** Titled Tuesday Blitz"]
[Site "Chess.com"]
[Date "2020.11.03"]
[Round "7"]
[White "kidagent"]
[Black "djano"]
[Result "0-1"]
[WhiteElo "2296"]
[BlackElo "2466"]
[TimeControl "180+1"]
[EndTime "11:19:21 PST"]
[Termination "djano won by resignation"]

1. e4 {[%clk 0:03:00.9]} 1... c5 {[%clk 0:02:58.3]} 2. Nf3 {[%clk 0:03:00.8]}
2... g6 {[%clk 0:02:57.6]} 3. d4 {[%clk 0:03:00.5]} 3... cxd4 {[%clk 0:02:58.2]}
4. Nxd4 {[%clk 0:03:01.4]} 4... Bg7 {[%clk 0:02:57.7]} 5. Nc3 {[%clk 0:03:01.6]}
5... Nc6 {[%clk 0:02:57.3]} 6. Be3 {[%clk 0:03:01.7]} 6... d6 {[%clk 0:02:49.2]}
7. Be2 {[%clk 0:03:00.9]} 7... Nf6 {[%clk 0:02:47.7]} 8. O-O {[%clk 0:02:57.7]}
8... O-O {[%clk 0:02:47.6]} 9. Nb3 {[%clk 0:02:52.5]} 9... b6 {[%clk 0:02:41.3]}
10. h3 {[%clk 0:02:50.3]} 10... Bb7 {[%clk 0:02:41.4]} 11. f4 {[%clk 0:02:48.4]}
11... Rc8 {[%clk 0:02:39.9]} 12. Bf3 {[%clk 0:02:48.4]} 12... Nd7 {[%clk
0:02:36.5]} 13. g4 {[%clk 0:02:44.2]} 13... Na5 {[%clk 0:02:17.8]} 14. Nxa5
{[%clk 0:02:42.6]} 14... bxa5 {[%clk 0:02:18.7]} 15. Bd4 {[%clk 0:02:28.4]}
15... e5 {[%clk 0:02:13.1]} 16. Bxa7 {[%clk 0:02:20.7]} 16... exf4 {[%clk
0:02:11.2]} 17. Qxd6 {[%clk 0:02:17.6]} 17... Rc6 {[%clk 0:01:50.1]} 18. Qd3
{[%clk 0:02:11.7]} 18... Qa8 {[%clk 0:01:48.8]} 19. Qxd7 {[%clk 0:01:53]} 19...
Qxa7+ {[%clk 0:01:48]} 20. Kg2 {[%clk 0:01:49.2]} 20... Bxc3 {[%clk 0:01:32.5]}
21. bxc3 {[%clk 0:01:48.5]} 21... Rxc3 {[%clk 0:01:32.7]} 22. Rf2 {[%clk
0:01:46.1]} 22... Rfc8 {[%clk 0:01:21.4]} 23. Rb1 {[%clk 0:01:29.1]} 23... Rxc2
{[%clk 0:01:19.3]} 24. Rxc2 {[%clk 0:00:21.8]} 24... Rxc2+ {[%clk 0:01:20.2]}
25. Kh1 {[%clk 0:00:20.6]} 25... Qf2 {[%clk 0:01:17.9]} 26. Qd8+ {[%clk
0:00:12]} 26... Kg7 {[%clk 0:01:17.7]} 0-1